[Event "Titled Tuesday Blitz May 2 Early 2023"]
[White "Galchenko, Matvey"]
[Black "Skliarov, Viktor"]
[WhiteFideId "24175480"]
[BlackFideId "14106736"]
[WhiteElo "2423"]
[BlackElo "2317"]
[Result "1-0"]
[Round "05"]
[TimeControl "180+2"]
[Date "2023.05.02"]
[WhiteClock "0:00:01"]
[BlackClock "0:00:04"]

1. f4 {[%clk 0:03:00]}  g6 {[%clk 0:02:58]} 2. Nf3 {[%clk 0:03:00]}  Bg7 {[%clk 0:02:58]} 3. g3 {[%clk 0:03:00]}  c5 {[%clk 0:02:58]} 4. Bg2 {[%clk 0:03:01]}  Nc6 {[%clk 0:02:59]} 5. O-O {[%clk 0:03:01]}  Nf6 {[%clk 0:02:59]} 6. d3 {[%clk 0:03:02]}  O-O {[%clk 0:02:59]} 7. Nc3 {[%clk 0:03:03]}  d5 {[%clk 0:02:59]} 8. e4 {[%clk 0:03:03]}  e6 {[%clk 0:02:53]} 9. e5 {[%clk 0:03:01]}  Nd7 {[%clk 0:02:52]} 10. Qe2 {[%clk 0:02:57]}  Nd4 {[%clk 0:02:37]} 11. Qf2 {[%clk 0:02:29]}  Nxf3+ {[%clk 0:02:37]} 12. Qxf3 {[%clk 0:02:30]}  a6 {[%clk 0:02:35]} 13. Bd2 {[%clk 0:02:25]}  b5 {[%clk 0:02:32]} 14. Rae1 {[%clk 0:02:23]}  Bb7 {[%clk 0:02:30]} 15. Qf2 {[%clk 0:02:21]}  Rc8 {[%clk 0:02:15]} 16. g4 {[%clk 0:02:17]}  b4 {[%clk 0:02:04]} 17. Ne2 {[%clk 0:02:09]}  a5 {[%clk 0:02:04]} 18. h4 {[%clk 0:01:54]}  c4 {[%clk 0:02:00]} 19. d4 {[%clk 0:01:31]}  c3 {[%clk 0:01:38]} 20. bxc3 {[%clk 0:01:32]}  bxc3 {[%clk 0:01:38]} 21. Bc1 {[%clk 0:01:33]}  Ba6 {[%clk 0:01:36]} 22. f5 {[%clk 0:01:25]}  exf5 {[%clk 0:00:46]} 23. gxf5 {[%clk 0:01:25]}  gxf5 {[%clk 0:00:46]} 24. Ba3 {[%clk 0:01:05]}  Nb6 {[%clk 0:00:23]} 25. Bxf8 {[%clk 0:00:55]}  Qxf8 {[%clk 0:00:23]} 26. Qxf5 {[%clk 0:00:56]}  Nc4 {[%clk 0:00:23]} 27. Qg5 {[%clk 0:00:43]}  Nd2 {[%clk 0:00:22]} 28. Rf6 {[%clk 0:00:33]}  Bxe2 {[%clk 0:00:14]} 29. Rxe2 {[%clk 0:00:33]}  Kh8 {[%clk 0:00:14]} 30. Rff2 {[%clk 0:00:11]}  Rb8 {[%clk 0:00:15]} 31. e6 {[%clk 0:00:09]}  Rb1+ {[%clk 0:00:15]} 32. Kh2 {[%clk 0:00:09]}  Qd6+ {[%clk 0:00:14]} 33. Qg3 {[%clk 0:00:09]}  Qxg3+ {[%clk 0:00:12]} 34. Kxg3 {[%clk 0:00:10]}  fxe6 {[%clk 0:00:13]} 35. Rxe6 {[%clk 0:00:09]}  Bxd4 {[%clk 0:00:13]} 36. Re8+ {[%clk 0:00:09]}  Kg7 {[%clk 0:00:13]} 37. Re7+ {[%clk 0:00:09]}  Kg6 {[%clk 0:00:11]} 38. Rff7 {[%clk 0:00:03]}  h5 {[%clk 0:00:06]} 39. Bxd5 {[%clk 0:00:02]}  Rg1+ {[%clk 0:00:04]} 40. Bg2 {[%clk 0:00:01]}  Nf1+ {[%clk 0:00:04]} 41. Rxf1 {[%clk 0:00:01]} 1-0


[Site "https://www.chess.com"]

[Event "Titled Tuesday Blitz May 2 Early 2023"]
[White "Gontcharov, Vladislav"]
[Black "Mekhitarian, Krikor Sevag"]
[WhiteFideId "4123492"]
[BlackFideId "2107660"]
[WhiteElo "2420"]
[BlackElo "2604"]
[Result "0-1"]
[Round "05"]
[TimeControl "180+2"]
[Date "2023.05.02"]
[WhiteClock "0:00:01"]
[BlackClock "0:00:19"]

1. e4 {[%clk 0:03:00]}  e6 {[%clk 0:02:59]} 2. d4 {[%clk 0:02:59]}  d5 {[%clk 0:03:00]} 3. Nd2 {[%clk 0:02:58]}  c5 {[%clk 0:03:00]} 4. exd5 {[%clk 0:02:58]}  Qxd5 {[%clk 0:03:00]} 5. Ngf3 {[%clk 0:02:58]}  cxd4 {[%clk 0:03:01]} 6. Bc4 {[%clk 0:02:56]}  Qd7 {[%clk 0:03:01]} 7. O-O {[%clk 0:02:56]}  Nc6 {[%clk 0:03:00]} 8. Nb3 {[%clk 0:02:56]}  a6 {[%clk 0:03:00]} 9. Nbxd4 {[%clk 0:02:55]}  Nxd4 {[%clk 0:02:59]} 10. Nxd4 {[%clk 0:02:55]}  Qc7 {[%clk 0:03:00]} 11. Bd3 {[%clk 0:02:50]}  Bd6 {[%clk 0:02:59]} 12. h3 {[%clk 0:02:49]}  Nf6 {[%clk 0:02:53]} 13. Qe2 {[%clk 0:02:42]}  O-O {[%clk 0:02:48]} 14. c3 {[%clk 0:02:37]}  Bd7 {[%clk 0:02:41]} 15. Bg5 {[%clk 0:02:33]}  Nd5 {[%clk 0:02:22]} 16. Qh5 {[%clk 0:02:16]}  g6 {[%clk 0:02:19]} 17. Qh4 {[%clk 0:02:06]}  Bh2+ {[%clk 0:02:05]} 18. Kh1 {[%clk 0:02:05]}  Bf4 {[%clk 0:02:06]} 19. Rad1 {[%clk 0:01:57]}  Bxg5 {[%clk 0:02:02]} 20. Qxg5 {[%clk 0:01:56]}  Qf4 {[%clk 0:02:01]} 21. Qxf4 {[%clk 0:01:53]}  Nxf4 {[%clk 0:02:02]} 22. Be4 {[%clk 0:01:53]}  Rab8 {[%clk 0:01:58]} 23. Ne2 {[%clk 0:01:17]}  Bb5 {[%clk 0:01:26]} 24. Nxf4 {[%clk 0:01:16]}  Bxf1 {[%clk 0:01:27]} 25. Rxf1 {[%clk 0:01:15]}  Rfd8 {[%clk 0:01:28]} 26. Re1 {[%clk 0:01:01]}  Rd6 {[%clk 0:01:13]} 27. Re2 {[%clk 0:00:53]}  Kg7 {[%clk 0:01:13]} 28. g4 {[%clk 0:00:38]}  b5 {[%clk 0:01:07]} 29. Kg2 {[%clk 0:00:33]}  Rbd8 {[%clk 0:01:07]} 30. Kf3 {[%clk 0:00:31]}  Rd1 {[%clk 0:01:07]} 31. Bc2 {[%clk 0:00:17]}  Rh1 {[%clk 0:01:02]} 32. Kg2 {[%clk 0:00:16]}  Ra1 {[%clk 0:01:01]} 33. a3 {[%clk 0:00:16]}  Rc1 {[%clk 0:00:58]} 34. Bb3 {[%clk 0:00:14]}  Rd6 {[%clk 0:00:52]} 35. g5 {[%clk 0:00:15]}  h6 {[%clk 0:00:51]} 36. h4 {[%clk 0:00:11]}  hxg5 {[%clk 0:00:50]} 37. hxg5 {[%clk 0:00:11]}  Rb1 {[%clk 0:00:44]} 38. Nh3 {[%clk 0:00:11]}  Rc1 {[%clk 0:00:27]} 39. f3 {[%clk 0:00:11]}  a5 {[%clk 0:00:24]} 40. a4 {[%clk 0:00:10]}  bxa4 {[%clk 0:00:20]} 41. Bxa4 {[%clk 0:00:10]}  Rd5 {[%clk 0:00:21]} 42. f4 {[%clk 0:00:10]}  Rc5 {[%clk 0:00:20]} 43. Nf2 {[%clk 0:00:09]}  Rb1 {[%clk 0:00:20]} 44. Ne4 {[%clk 0:00:08]}  Rc4 {[%clk 0:00:19]} 45. Bb3 {[%clk 0:00:01]}  Rc7 {[%clk 0:00:19]} 0-1


[Site "https://www.chess.com"]

[Event "Titled Tuesday Blitz May 2 Early 2023"]
[White "Rodshtein, Maxim"]
[Black "Tasev, Dejan"]
[WhiteFideId "2806851"]
[BlackFideId "936618"]
[WhiteElo "2555"]
[BlackElo "2244"]
[Result "0-1"]
[Round "05"]
[TimeControl "180+2"]
[Date "2023.05.02"]
[WhiteClock "0:00:09"]
[BlackClock "0:00:07"]

1. e4 {[%clk 0:03:00]}  e5 {[%clk 0:02:59]} 2. Nf3 {[%clk 0:02:59]}  Nc6 {[%clk 0:02:59]} 3. Bb5 {[%clk 0:02:59]}  a6 {[%clk 0:02:59]} 4. Ba4 {[%clk 0:02:59]}  Nf6 {[%clk 0:02:58]} 5. O-O {[%clk 0:02:59]}  b5 {[%clk 0:02:58]} 6. Bb3 {[%clk 0:02:58]}  Be7 {[%clk 0:02:57]} 7. d3 {[%clk 0:02:57]}  O-O {[%clk 0:02:56]} 8. a4 {[%clk 0:02:45]}  b4 {[%clk 0:02:50]} 9. Re1 {[%clk 0:02:41]}  d6 {[%clk 0:02:47]} 10. h3 {[%clk 0:02:33]}  Be6 {[%clk 0:02:46]} 11. Nbd2 {[%clk 0:02:23]}  h6 {[%clk 0:02:41]} 12. a5 {[%clk 0:02:19]}  Nd7 {[%clk 0:02:20]} 13. Bxe6 {[%clk 0:02:13]}  fxe6 {[%clk 0:02:19]} 14. Nb3 {[%clk 0:02:14]}  Qe8 {[%clk 0:02:15]} 15. c3 {[%clk 0:02:11]}  bxc3 {[%clk 0:02:13]} 16. bxc3 {[%clk 0:02:12]}  Qg6 {[%clk 0:02:11]} 17. d4 {[%clk 0:01:42]}  exd4 {[%clk 0:02:05]} 18. cxd4 {[%clk 0:01:36]}  d5 {[%clk 0:01:50]} 19. exd5 {[%clk 0:01:21]}  exd5 {[%clk 0:01:48]} 20. Bd2 {[%clk 0:01:20]}  Bd6 {[%clk 0:01:41]} 21. Rc1 {[%clk 0:01:18]}  Nd8 {[%clk 0:01:04]} 22. Ne5 {[%clk 0:01:04]}  Qf5 {[%clk 0:00:54]} 23. f4 {[%clk 0:01:00]}  Nf6 {[%clk 0:00:48]} 24. g4 {[%clk 0:00:58]}  Qc8 {[%clk 0:00:32]} 25. Nc5 {[%clk 0:00:57]}  Nf7 {[%clk 0:00:25]} 26. Be3 {[%clk 0:00:31]}  Rb8 {[%clk 0:00:22]} 27. Qc2 {[%clk 0:00:21]}  Rb5 {[%clk 0:00:21]} 28. Nc6 {[%clk 0:00:14]}  Qa8 {[%clk 0:00:15]} 29. Ne6 {[%clk 0:00:13]}  Re8 {[%clk 0:00:14]} 30. f5 {[%clk 0:00:13]}  Ne4 {[%clk 0:00:12]} 31. Rf1 {[%clk 0:00:12]}  Nfg5 {[%clk 0:00:10]} 32. h4 {[%clk 0:00:11]}  Nxe6 {[%clk 0:00:10]} 33. fxe6 {[%clk 0:00:12]}  Rxe6 {[%clk 0:00:10]} 34. g5 {[%clk 0:00:10]}  Qe8 {[%clk 0:00:10]} 35. Qg2 {[%clk 0:00:10]}  hxg5 {[%clk 0:00:09]} 36. hxg5 {[%clk 0:00:10]}  Rb3 {[%clk 0:00:07]} 37. Rf3 {[%clk 0:00:10]}  Rxe3 {[%clk 0:00:06]} 38. Rxe3 {[%clk 0:00:10]}  Bf4 {[%clk 0:00:07]} 39. Rxe4 {[%clk 0:00:09]}  Rxe4 {[%clk 0:00:07]} 0-1


[Site "https://www.chess.com"]

[Event "Titled Tuesday Blitz May 2 Early 2023"]
[White "Ingebretsen, Jens E"]
[Black "Martinez Ramirez, Lennis"]
[WhiteFideId "1522965"]
[BlackFideId "3509079"]
[WhiteElo "2213"]
[BlackElo "2410"]
[Result "0-1"]
[Round "05"]
[TimeControl "180+2"]
[Date "2023.05.02"]
[WhiteClock "0:00:17"]
[BlackClock "0:00:39"]

1. c4 {[%clk 0:02:57]}  e5 {[%clk 0:02:56]} 2. Nc3 {[%clk 0:02:57]}  Nf6 {[%clk 0:02:56]} 3. Nf3 {[%clk 0:02:57]}  Nc6 {[%clk 0:02:55]} 4. e3 {[%clk 0:02:56]}  Bb4 {[%clk 0:02:54]} 5. Qc2 {[%clk 0:02:57]}  Bxc3 {[%clk 0:02:53]} 6. bxc3 {[%clk 0:02:58]}  e4 {[%clk 0:02:50]} 7. Ng5 {[%clk 0:02:58]}  Qe7 {[%clk 0:02:50]} 8. f3 {[%clk 0:02:57]}  exf3 {[%clk 0:02:47]} 9. Nxf3 {[%clk 0:02:58]}  b6 {[%clk 0:02:46]} 10. d4 {[%clk 0:02:58]}  O-O {[%clk 0:02:42]} 11. Bd3 {[%clk 0:02:58]}  Ba6 {[%clk 0:02:14]} 12. O-O {[%clk 0:02:56]}  Na5 {[%clk 0:02:08]} 13. Ne5 {[%clk 0:02:32]}  d6 {[%clk 0:02:07]} 14. Ba3 {[%clk 0:02:33]}  c5 {[%clk 0:02:05]} 15. Rxf6 {[%clk 0:02:23]}  gxf6 {[%clk 0:01:48]} 16. Bxh7+ {[%clk 0:01:20]}  Kg7 {[%clk 0:01:25]} 17. Ng4 {[%clk 0:01:07]}  Nxc4 {[%clk 0:01:17]} 18. Qf2 {[%clk 0:00:57]}  Rh8 {[%clk 0:01:08]} 19. Qg3 {[%clk 0:00:49]}  Kxh7 {[%clk 0:00:44]} 20. Rf1 {[%clk 0:00:45]}  Rag8 {[%clk 0:00:43]} 21. Nxf6+ {[%clk 0:00:33]}  Qxf6 {[%clk 0:00:42]} 22. Qh3+ {[%clk 0:00:28]}  Kg7 {[%clk 0:00:39]} 23. Qg4+ {[%clk 0:00:17]}  Qg6 {[%clk 0:00:39]} 0-1


[Site "https://www.chess.com"]

[Event "Titled Tuesday Blitz May 2 Early 2023"]
[White "Arencibia Monduy, Antonio"]
[Black "Prohaszka, Peter"]
[WhiteFideId "3507939"]
[BlackFideId "726265"]
[WhiteElo "2122"]
[BlackElo "2626"]
[Result "0-1"]
[Round "05"]
[TimeControl "180+2"]
[Date "2023.05.02"]
[WhiteClock "0:00:01"]
[BlackClock "0:00:12"]

1. e4 {[%clk 0:03:00]}  c6 {[%clk 0:02:53]} 2. d4 {[%clk 0:02:58]}  d5 {[%clk 0:02:54]} 3. Nc3 {[%clk 0:02:56]}  dxe4 {[%clk 0:02:55]} 4. Nxe4 {[%clk 0:02:57]}  Nf6 {[%clk 0:02:55]} 5. Nc3 {[%clk 0:02:52]}  Bf5 {[%clk 0:02:54]} 6. Nf3 {[%clk 0:02:51]}  e6 {[%clk 0:02:54]} 7. Bd3 {[%clk 0:02:50]}  Bg6 {[%clk 0:02:55]} 8. O-O {[%clk 0:02:49]}  Nbd7 {[%clk 0:02:55]} 9. Bf4 {[%clk 0:02:49]}  Be7 {[%clk 0:02:53]} 10. Re1 {[%clk 0:02:45]}  Nd5 {[%clk 0:02:51]} 11. Nxd5 {[%clk 0:02:41]}  cxd5 {[%clk 0:02:51]} 12. Bxg6 {[%clk 0:02:34]}  hxg6 {[%clk 0:02:52]} 13. c3 {[%clk 0:02:30]}  a6 {[%clk 0:02:42]} 14. Qd2 {[%clk 0:02:22]}  Nf6 {[%clk 0:02:29]} 15. Ne5 {[%clk 0:02:15]}  Ne4 {[%clk 0:02:26]} 16. Qe3 {[%clk 0:02:09]}  g5 {[%clk 0:02:10]} 17. Bg3 {[%clk 0:02:03]}  Bd6 {[%clk 0:02:08]} 18. f3 {[%clk 0:01:49]}  Nxg3 {[%clk 0:02:04]} 19. hxg3 {[%clk 0:01:37]}  Bxe5 {[%clk 0:01:27]} 20. Qxe5 {[%clk 0:01:32]}  Kf8 {[%clk 0:01:20]} 21. Rf1 {[%clk 0:01:23]}  Qf6 {[%clk 0:01:18]} 22. Qc7 {[%clk 0:01:00]}  Qe7 {[%clk 0:01:18]} 23. Qe5 {[%clk 0:00:57]}  f6 {[%clk 0:01:18]} 24. Qe3 {[%clk 0:00:57]}  Qd6 {[%clk 0:01:12]} 25. f4 {[%clk 0:00:52]}  gxf4 {[%clk 0:01:04]} 26. gxf4 {[%clk 0:00:52]}  Re8 {[%clk 0:01:02]} 27. Rae1 {[%clk 0:00:53]}  Re7 {[%clk 0:00:55]} 28. Rf2 {[%clk 0:00:52]}  Ke8 {[%clk 0:00:55]} 29. Rfe2 {[%clk 0:00:52]}  Kd7 {[%clk 0:00:56]} 30. Qg3 {[%clk 0:00:48]}  g5 {[%clk 0:00:50]} 31. Rf1 {[%clk 0:00:35]}  Rh4 {[%clk 0:00:50]} 32. Ref2 {[%clk 0:00:22]}  Reh7 {[%clk 0:00:50]} 33. Rf3 {[%clk 0:00:23]}  g4 {[%clk 0:00:16]} 34. Re3 {[%clk 0:00:22]}  f5 {[%clk 0:00:17]} 35. Rfe1 {[%clk 0:00:21]}  Rh1+ {[%clk 0:00:14]} 36. Kf2 {[%clk 0:00:21]}  Rxe1 {[%clk 0:00:14]} 37. Rxe1 {[%clk 0:00:22]}  Qb6 {[%clk 0:00:14]} 38. Re2 {[%clk 0:00:22]}  Rh1 {[%clk 0:00:13]} 39. Qe3 {[%clk 0:00:21]}  Qd6 {[%clk 0:00:12]} 40. Qe5 {[%clk 0:00:15]}  Qxe5 {[%clk 0:00:12]} 41. Rxe5 {[%clk 0:00:14]}  Ra1 {[%clk 0:00:12]} 42. Re2 {[%clk 0:00:14]}  Rxa2 {[%clk 0:00:12]} 43. Kg3 {[%clk 0:00:14]}  a5 {[%clk 0:00:12]} 44. Kh4 {[%clk 0:00:14]}  a4 {[%clk 0:00:13]} 45. Kg5 {[%clk 0:00:14]}  a3 {[%clk 0:00:13]} 46. Re1 {[%clk 0:00:06]}  Rxb2 {[%clk 0:00:12]} 47. Kf6 {[%clk 0:00:06]}  a2 {[%clk 0:00:13]} 48. Ra1 {[%clk 0:00:03]}  Rxg2 {[%clk 0:00:13]} 49. Rh1 {[%clk 0:00:02]}  Rb2 {[%clk 0:00:12]} 50. Rh7+ {[%clk 0:00:01]}  Kc6 {[%clk 0:00:12]} 0-1


[Site "https://www.chess.com"]

[Event "Titled Tuesday Blitz May 2 Early 2023"]
[White "Koellner, Ruben Gideon"]
[Black "Ibadov, Dashgyn"]
[WhiteFideId "12993093"]
[BlackFideId "24107514"]
[WhiteElo "2314"]
[BlackElo "2208"]
[Result "1-0"]
[Round "05"]
[TimeControl "180+2"]
[Date "2023.05.02"]
[WhiteClock "0:00:21"]
[BlackClock "0:00:01"]

1. d4 {[%clk 0:02:56]}  d5 {[%clk 0:02:58]} 2. Nf3 {[%clk 0:02:26]}  Nf6 {[%clk 0:02:57]} 3. e3 {[%clk 0:02:21]}  e6 {[%clk 0:02:48]} 4. Nbd2 {[%clk 0:02:21]}  Bd6 {[%clk 0:02:45]} 5. Bd3 {[%clk 0:02:21]}  c5 {[%clk 0:02:41]} 6. c3 {[%clk 0:02:21]}  Nc6 {[%clk 0:02:41]} 7. O-O {[%clk 0:02:18]}  O-O {[%clk 0:02:40]} 8. dxc5 {[%clk 0:02:16]}  Bxc5 {[%clk 0:02:40]} 9. b4 {[%clk 0:02:17]}  Bd6 {[%clk 0:02:38]} 10. Bb2 {[%clk 0:02:17]}  Qe7 {[%clk 0:02:20]} 11. a3 {[%clk 0:02:14]}  a6 {[%clk 0:02:12]} 12. c4 {[%clk 0:02:13]}  Rd8 {[%clk 0:02:00]} 13. Qe2 {[%clk 0:01:50]}  e5 {[%clk 0:01:59]} 14. cxd5 {[%clk 0:01:41]}  Nxd5 {[%clk 0:01:59]} 15. Rfd1 {[%clk 0:01:34]}  Bg4 {[%clk 0:01:57]} 16. h3 {[%clk 0:01:34]}  Bh5 {[%clk 0:01:57]} 17. Ne4 {[%clk 0:01:26]}  Bc7 {[%clk 0:01:54]} 18. Bc4 {[%clk 0:01:17]}  Nf6 {[%clk 0:01:22]} 19. Qc2 {[%clk 0:01:15]}  Bxf3 {[%clk 0:01:21]} 20. gxf3 {[%clk 0:01:16]}  Nh5 {[%clk 0:01:12]} 21. Rxd8+ {[%clk 0:01:05]}  Rxd8 {[%clk 0:01:13]} 22. Rd1 {[%clk 0:01:05]}  Rf8 {[%clk 0:01:09]} 23. Kg2 {[%clk 0:01:00]}  Kh8 {[%clk 0:01:08]} 24. Ng3 {[%clk 0:00:58]}  Nxg3 {[%clk 0:00:47]} 25. fxg3 {[%clk 0:00:58]}  f5 {[%clk 0:00:47]} 26. Bd5 {[%clk 0:00:54]}  Rd8 {[%clk 0:00:26]} 27. Qxf5 {[%clk 0:00:44]}  Nd4 {[%clk 0:00:15]} 28. exd4 {[%clk 0:00:34]}  Rxd5 {[%clk 0:00:14]} 29. Qe4 {[%clk 0:00:34]}  Rd8 {[%clk 0:00:10]} 30. d5 {[%clk 0:00:32]}  Bd6 {[%clk 0:00:07]} 31. Re1 {[%clk 0:00:31]}  Re8 {[%clk 0:00:06]} 32. f4 {[%clk 0:00:25]}  exf4 {[%clk 0:00:03]} 33. Qxe7 {[%clk 0:00:25]}  Rxe7 {[%clk 0:00:02]} 34. Rxe7 {[%clk 0:00:25]}  Bxe7 {[%clk 0:00:02]} 35. gxf4 {[%clk 0:00:26]}  Kg8 {[%clk 0:00:02]} 36. Kf3 {[%clk 0:00:26]}  Kf7 {[%clk 0:00:02]} 37. f5 {[%clk 0:00:23]}  b5 {[%clk 0:00:01]} 38. Be5 {[%clk 0:00:21]}  g6 {[%clk 0:00:01]} 39. Ke4 {[%clk 0:00:21]} 1-0


[Site "https://www.chess.com"]

[Event "Titled Tuesday Blitz May 2 Early 2023"]
[White "Omelja, Artem"]
[Black "Vaibhav Jayant Raut"]
[WhiteFideId "14119846"]
[BlackFideId "5089034"]
[WhiteElo "2404"]
[BlackElo "2156"]
[Result "1/2-1/2"]
[Round "05"]
[TimeControl "180+2"]
[Date "2023.05.02"]
[WhiteClock "0:00:06"]
[BlackClock "0:00:06"]

1. e4 {[%clk 0:03:00]}  c5 {[%clk 0:02:37]} 2. Nf3 {[%clk 0:02:55]}  Nc6 {[%clk 0:02:37]} 3. Bb5 {[%clk 0:02:50]}  g6 {[%clk 0:02:31]} 4. O-O {[%clk 0:02:48]}  Bg7 {[%clk 0:02:31]} 5. Re1 {[%clk 0:02:49]}  e5 {[%clk 0:02:29]} 6. b4 {[%clk 0:02:44]}  cxb4 {[%clk 0:02:24]} 7. a3 {[%clk 0:02:43]}  Nge7 {[%clk 0:02:17]} 8. axb4 {[%clk 0:02:41]}  O-O {[%clk 0:02:17]} 9. c3 {[%clk 0:02:35]}  a6 {[%clk 0:02:08]} 10. Bf1 {[%clk 0:02:22]}  Rb8 {[%clk 0:02:00]} 11. b5 {[%clk 0:02:18]}  axb5 {[%clk 0:01:58]} 12. Bxb5 {[%clk 0:02:19]}  d5 {[%clk 0:01:57]} 13. d3 {[%clk 0:02:18]}  h6 {[%clk 0:01:39]} 14. Ba3 {[%clk 0:02:11]}  Re8 {[%clk 0:01:35]} 15. Nbd2 {[%clk 0:02:10]}  Be6 {[%clk 0:01:35]} 16. Qe2 {[%clk 0:02:00]}  Ra8 {[%clk 0:01:29]} 17. Bc5 {[%clk 0:01:53]}  Qc7 {[%clk 0:01:27]} 18. exd5 {[%clk 0:01:44]}  Nxd5 {[%clk 0:01:24]} 19. Ne4 {[%clk 0:00:35]}  Rad8 {[%clk 0:00:59]} 20. c4 {[%clk 0:00:32]}  Nf4 {[%clk 0:00:58]} 21. Qe3 {[%clk 0:00:30]}  Rxd3 {[%clk 0:00:52]} 22. Bb6 {[%clk 0:00:30]}  Qe7 {[%clk 0:00:46]} 23. Qc5 {[%clk 0:00:30]}  Bf8 {[%clk 0:00:34]} 24. Qxe7 {[%clk 0:00:30]}  Bxe7 {[%clk 0:00:35]} 25. Bxc6 {[%clk 0:00:29]}  bxc6 {[%clk 0:00:33]} 26. Nxe5 {[%clk 0:00:29]}  Rb3 {[%clk 0:00:30]} 27. c5 {[%clk 0:00:27]}  Bd5 {[%clk 0:00:27]} 28. Nd6 {[%clk 0:00:14]}  Rf8 {[%clk 0:00:14]} 29. Ne4 {[%clk 0:00:08]}  Bd8 {[%clk 0:00:08]} 30. Bxd8 {[%clk 0:00:07]}  Rxd8 {[%clk 0:00:09]} 31. f3 {[%clk 0:00:07]}  Rb2 {[%clk 0:00:07]} 32. Nf2 {[%clk 0:00:07]}  Re8 {[%clk 0:00:06]} 33. Ned3 {[%clk 0:00:07]}  Ne2+ {[%clk 0:00:05]} 34. Kh1 {[%clk 0:00:06]}  Rc2 {[%clk 0:00:06]} 35. Rac1 {[%clk 0:00:05]}  Rxc1 {[%clk 0:00:06]} 36. Nxc1 {[%clk 0:00:05]}  Bc4 {[%clk 0:00:05]} 37. Nxe2 {[%clk 0:00:05]}  Rxe2 {[%clk 0:00:06]} 38. Rxe2 {[%clk 0:00:05]}  Bxe2 {[%clk 0:00:07]} 39. Ne4 {[%clk 0:00:06]}  Kg7 {[%clk 0:00:06]} 40. Kg1 {[%clk 0:00:06]}  f5 {[%clk 0:00:07]} 41. Nd6 {[%clk 0:00:06]}  Kf6 {[%clk 0:00:07]} 42. Kf2 {[%clk 0:00:05]}  Ba6 {[%clk 0:00:08]} 43. Ke3 {[%clk 0:00:05]}  Ke5 {[%clk 0:00:08]} 44. Nf7+ {[%clk 0:00:05]}  Kd5 {[%clk 0:00:08]} 45. Nxh6 {[%clk 0:00:06]}  Kxc5 {[%clk 0:00:09]} 46. f4 {[%clk 0:00:05]}  Kd6 {[%clk 0:00:09]} 47. g4 {[%clk 0:00:06]}  fxg4 {[%clk 0:00:08]} 48. Nxg4 {[%clk 0:00:07]}  c5 {[%clk 0:00:09]} 49. Ne5 {[%clk 0:00:06]}  g5 {[%clk 0:00:09]} 50. Nf7+ {[%clk 0:00:06]}  Ke6 {[%clk 0:00:10]} 51. Nxg5+ {[%clk 0:00:07]}  Kf5 {[%clk 0:00:11]} 52. h4 {[%clk 0:00:07]}  Kg4 {[%clk 0:00:09]} 53. Ne6 {[%clk 0:00:03]}  c4 {[%clk 0:00:09]} 54. Nd4 {[%clk 0:00:04]}  Kxh4 {[%clk 0:00:09]} 55. Kd2 {[%clk 0:00:04]}  Kg4 {[%clk 0:00:09]} 56. f5 {[%clk 0:00:05]}  Kg5 {[%clk 0:00:08]} 57. Kc3 {[%clk 0:00:05]}  Kf6 {[%clk 0:00:08]} 58. Ne6 {[%clk 0:00:06]}  Kxf5 {[%clk 0:00:07]} 59. Nc7 {[%clk 0:00:06]}  Bc8 {[%clk 0:00:06]} 60. Kxc4 {[%clk 0:00:06]} 1/2-1/2


[Site "https://www.chess.com"]